bitfinex-derivatives/quotes_BTCF0:USTF0_20241022
["timestamp","ask_amount","ask_price","bid_price","bid_amount"]
[1729612488492,0.22269142,67368.0,67367.0,0.185252]
[1729612488898,0.22269142,67368.0,67367.0,0.184252]
[1729612489593,0.14843842,67368.0,67367.0,0.294252]
[1729612490097,0.14843842,67368.0,67367.0,0.184252]
[1729612490685,0.14843842,67368.0,67367.0,0.25391137]
[1729612491595,0.14843842,67368.0,67367.0,0.30489853]
[1729612491798,0.0472,67385.0,67367.0,1.11037168]
[1729612491994,0.0472,67385.0,67384.0,0.11]
[1729612491995,0.13177375,67385.0,67384.0,0.11]
[1729612492496,0.074234,67384.0,67383.0,0.30908]
[1729612492695,0.074234,67384.0,67383.0,0.42773757]
[1729612492901,0.074234,67384.0,67383.0,0.41973757]
[1729612493595,0.074234,67384.0,67383.0,0.375316]
[1729612493791,0.074234,67384.0,67383.0,0.41975064]
[1729612494195,0.077234,67384.0,67383.0,0.28867064]
[1729612494391,0.077234,67384.0,67383.0,0.42775064]
[1729612494589,0.077234,67384.0,67383.0,0.383316]
[1729612495001,0.077234,67384.0,67383.0,0.42775064]
[1729612495604,0.080234,67384.0,67383.0,0.42775064]
[1729612496504,0.080234,67384.0,67383.0,0.383316]
[1729612498506,0.441034,67384.0,67383.0,0.383316]
[1729612499299,0.080234,67384.0,67383.0,0.383316]
[1729612499500,0.441034,67384.0,67383.0,0.383316]
[1729612500302,0.441034,67384.0,67383.0,0.213316]
[1729612501206,0.441034,67384.0,67383.0,0.25776854]
[1729612501508,0.441034,67384.0,67383.0,0.25776873]
[1729612502916,0.611034,67384.0,67383.0,0.13908]
[1729612505417,0.074237,67382.0,67381.0,0.04445273]
[1729612505613,0.074249,67371.0,67370.0,0.05922876]
[1729612505800,0.074253,67367.0,67366.0,0.05922876]
[1729612506111,0.074253,67367.0,67359.0,0.21092515]
[1729612506112,0.1472,67370.0,67364.0,0.05922876]
[1729612506412,0.074255,67365.0,67364.0,0.22922876]
[1729612506608,0.074255,67365.0,67364.0,0.17]
[1729612506813,0.1472,67370.0,67364.0,0.17]
[1729612507000,0.074253,67368.0,67367.0,0.074251]
[1729612507199,0.3608,67371.0,67365.0,0.05922876]
[1729612507409,0.435049,67371.0,67370.0,0.24425]
[1729612507807,0.438049,67371.0,67370.0,0.07425]
[1729612508208,0.438049,67371.0,67370.0,0.06625]
[1729612508399,0.074249,67371.0,67370.0,0.06625]
[1729612508604,0.077249,67371.0,67370.0,0.06625]
[1729612509107,0.003,67371.0,67370.0,0.23625]
[1729612509301,0.36156,67374.0,67373.0,0.074247]
[1729612509506,0.435046,67374.0,67373.0,0.27083327]
[1729612509706,0.3608,67374.0,67373.0,0.27083327]
[1729612510208,0.3608,67374.0,67373.0,0.211567]
[1729612510406,0.435046,67374.0,67373.0,0.211567]
[1729612510606,0.3608,67374.0,67373.0,0.211567]
[1729612511308,0.3638,67374.0,67373.0,0.211567]
[1729612511511,0.3668,67374.0,67373.0,0.211567]
[1729612512416,0.3668,67374.0,67373.0,0.321567]
[1729612518711,0.3668,67374.0,67373.0,0.211567]
[1729612519017,0.3648,67374.0,67373.0,0.321567]
[1729612519413,0.3618,67374.0,67373.0,0.321567]
[1729612519612,0.3628,67374.0,67373.0,0.321567]
[1729612521919,0.3618,67374.0,67373.0,0.323567]
[1729612522122,0.3608,67374.0,67373.0,0.323567]
[1729612522425,0.07424,67379.0,67378.0,0.074239]
[1729612522727,0.0455,67385.0,67378.0,0.22]
[1729612523020,0.119733,67385.0,67384.0,0.184234]
[1729612523324,0.119733,67385.0,67384.0,0.321554]
[1729612523519,0.119733,67385.0,67384.0,0.313554]
[1729612525025,0.122733,67385.0,67384.0,0.23932]
[1729612525219,0.593533,67385.0,67384.0,0.13732]
[1729612525821,0.596533,67385.0,67384.0,0.13732]
[1729612526329,0.074238,67381.0,67380.0,0.074238]
[1729612526523,0.074238,67381.0,67380.0,0.211558]
[1729612527728,0.077238,67381.0,67380.0,0.211558]
[1729612528529,0.077238,67381.0,67380.0,0.22193074]
[1729612528925,0.077238,67381.0,67380.0,0.28124863]
[1729612529131,0.080238,67381.0,67380.0,0.28100863]
[1729612530327,0.080238,67381.0,67380.0,0.22169074]
[1729612530827,0.080238,67381.0,67380.0,0.20677524]
[1729612531024,0.080238,67381.0,67380.0,0.1964025]
[1729612531825,0.080238,67381.0,67380.0,0.13708]
[1729612533929,0.074239,67380.0,67379.0,0.08494716]
[1729612534126,0.074239,67380.0,67379.0,0.22202716]
[1729612535130,0.077239,67380.0,67379.0,0.22202716]
[1729612536734,0.080239,67380.0,67379.0,0.22202716]
[1729612538931,0.080239,67380.0,67379.0,0.21402716]
[1729612542338,0.006,67380.0,67379.0,0.21402716]
[1729612542540,0.006,67380.0,67379.0,0.39763231]
[1729612542733,0.006,67380.0,67379.0,0.29356406]
[1729612543238,0.080239,67380.0,67379.0,0.29356406]
[1729612545329,0.006,67380.0,67379.0,0.29356406]
[1729612545539,0.006,67380.0,67379.0,0.15648406]
[1729612545846,0.006,67380.0,67379.0,0.29356406]
[1729612546345,0.006,67380.0,67379.0,0.28825913]
[1729612546640,0.080239,67380.0,67379.0,0.36786981]
[1729612546839,0.080239,67380.0,67379.0,0.21402716]
[1729612547841,0.07424,67379.0,67378.0,0.07423197]
[1729612548044,0.07424,67379.0,67368.0,0.074251]
[1729612548045,0.07424,67379.0,67374.0,0.07423197]
[1729612548345,0.435044,67375.0,67374.0,0.05938266]
[1729612548641,0.3608,67375.0,67372.0,0.05938266]
[1729612548850,0.074247,67373.0,67372.0,0.05938266]
[1729612549435,0.074247,67373.0,67368.0,0.13708]
[1729612549436,0.074248,67372.0,67371.0,0.05938266]
[1729612549639,0.122748,67372.0,67371.0,0.05938266]
[1729612550137,0.122748,67372.0,67371.0,0.16938266]
[1729612550644,0.122748,67372.0,67371.0,0.17338266]
[1729612550845,0.0485,67372.0,67371.0,0.17738266]
[1729612551030,0.169747,67374.0,67373.0,0.074247]
[1729612551233,0.169747,67374.0,67373.0,0.24359876]
[1729612551443,0.169747,67374.0,67373.0,0.38067876]
[1729612551833,0.169747,67374.0,67373.0,0.24359876]
[1729612552038,0.169747,67374.0,67373.0,0.38067876]
[1729612552268,0.169747,67374.0,67373.0,0.321327]
[1729612552436,0.169747,67374.0,67373.0,0.38066687]
[1729612553639,0.172747,67374.0,67373.0,0.38066687]
[1729612554238,0.169747,67374.0,67373.0,0.38066687]
[1729612554438,0.170747,67374.0,67373.0,0.38066687]
[1729612554641,0.171747,67374.0,67373.0,0.321327]
[1729612555042,0.171747,67374.0,67373.0,0.313327]
[1729612556441,0.171747,67374.0,67373.0,0.176247]
[1729612556645,0.171747,67374.0,67373.0,0.312967]
[1729612557444,0.170747,67374.0,67373.0,0.312967]
[1729612557748,0.124147,67374.0,67373.0,0.312967]
[1729612558141,0.124147,67374.0,67373.0,0.176247]
[1729612558337,0.075247,67374.0,67373.0,0.312967]
[1729612558840,0.0463,67382.0,67373.0,0.312967]
[1729612558841,0.3608,67390.0,67373.0,1.46638107]
[1729612559039,0.3608,67390.0,67389.0,0.294229]
[1729612559251,0.3608,67390.0,67389.0,0.49026536]
[1729612559443,0.3608,67390.0,67389.0,0.49024905]
[1729612559644,0.3608,67390.0,67389.0,0.38024905]
[1729612559843,0.3608,67390.0,67389.0,0.320949]
[1729612560248,0.435028,67390.0,67389.0,0.074229]
[1729612560449,0.3608,67390.0,67389.0,0.13672]
[1729612560654,0.438028,67390.0,67389.0,0.19601839]
[1729612561154,0.3668,67390.0,67388.0,0.05929839]
[1729612561362,0.2006,67389.0,67380.0,0.074125]
[1729612561655,0.074232,67386.0,67383.0,0.05929962]
[1729612561954,0.074232,67386.0,67381.0,0.24672]
[1729612561955,0.074237,67382.0,67381.0,0.30601962]
[1729612562345,0.074237,67382.0,67381.0,0.44025762]
[1729612562551,0.074237,67382.0,67381.0,0.05929962]
[1729612562747,0.5308,67384.0,67381.0,0.13672]
[1729612563054,0.07424,67379.0,67378.0,0.22929962]
[1729612563250,0.07424,67379.0,67378.0,0.36601962]
[1729612563955,0.07424,67379.0,67378.0,0.22929962]
[1729612564142,0.07424,67379.0,67373.0,0.37155746]
[1729612564143,0.244236,67383.0,67377.0,0.05929962]
[1729612564344,0.07424,67379.0,67378.0,0.13672]
[1729612564745,0.07724,67379.0,67378.0,0.13672]
[1729612564948,0.08024,67379.0,67378.0,0.13672]
[1729612565853,0.074242,67377.0,67376.0,0.30354262]
[1729612566058,0.080241,67379.0,67378.0,0.210961]
[1729612566250,0.077241,67379.0,67378.0,0.210961]
[1729612566449,0.080241,67379.0,67378.0,0.210961]
[1729612567046,0.077241,67379.0,67378.0,0.210961]
[1729612567261,0.080241,67379.0,67378.0,0.210961]
[1729612567850,0.077241,67379.0,67378.0,0.210961]
[1729612568658,0.080241,67379.0,67378.0,0.27026551]
[1729612568854,0.080241,67379.0,67378.0,0.210961]
[1729612569061,0.080241,67379.0,67378.0,0.13672]
[1729612569360,0.080241,67379.0,67378.0,0.210961]
[1729612569548,0.080241,67379.0,67378.0,0.202961]
[1729612569754,0.080241,67379.0,67378.0,0.26226354]
[1729612569954,0.080241,67379.0,67378.0,0.202961]
[1729612570357,0.080241,67379.0,67378.0,0.12872]
[1729612570756,0.074241,67378.0,67377.0,0.05930254]
[1729612570958,0.074241,67378.0,67371.0,0.074248]
[1729612570959,0.44524,67378.0,67372.0,0.05930254]
[1729612571262,0.074248,67372.0,67366.0,0.13672]
[1729612571560,0.074253,67367.0,67366.0,0.13672]
[1729612573354,0.074253,67367.0,67366.0,0.13972]
[1729612573965,0.435053,67367.0,67366.0,0.13672]
[1729612574270,0.435053,67367.0,67366.0,0.13972]
[1729612574465,0.436053,67367.0,67366.0,0.14872]
[1729612574852,0.436053,67367.0,67366.0,0.222974]
[1729612575051,0.3618,67367.0,67366.0,0.222974]
[1729612575259,0.3608,67367.0,67366.0,0.216974]
[1729612575660,0.3608,67367.0,67366.0,0.386974]
[1729612576866,0.435053,67367.0,67366.0,0.386974]
[1729612582165,0.435053,67367.0,67366.0,0.250254]
[1729612582379,0.435053,67367.0,67366.0,0.387014]
[1729612582674,0.435053,67367.0,67366.0,0.217014]
[1729612584475,0.0924,67371.0,67370.0,0.07425]
[1729612584678,0.075127,67373.0,67372.0,0.074248]
[1729612584875,0.074244,67376.0,67372.0,0.074248]
[1729612585081,0.07424,67379.0,67378.0,0.074239]
[1729612585371,0.07424,67379.0,67378.0,0.236239]
[1729612587172,0.07724,67379.0,67378.0,0.236239]
[1729612587379,0.08024,67379.0,67378.0,0.372519]
[1729612589376,0.006,67379.0,67378.0,0.372519]
[1729612591580,0.08024,67379.0,67378.0,0.372519]
[1729612591779,0.006,67379.0,67378.0,0.372519]
[1729612592288,0.08024,67379.0,67378.0,0.372519]
[1729612592587,0.006,67379.0,67378.0,0.372519]
[1729612593789,0.08024,67379.0,67378.0,0.372519]
[1729612594175,0.006,67379.0,67378.0,0.372519]
[1729612594885,0.08024,67379.0,67378.0,0.372519]
[1729612599578,0.006,67379.0,67378.0,0.372519]
[1729612600584,0.006,67379.0,67378.0,0.534519]
[1729612603590,0.074231,67388.0,67387.0,0.07423]
[1729612603790,0.074231,67388.0,67387.0,0.24423]
[1729612604285,0.074231,67388.0,67387.0,0.17]
[1729612606287,0.074232,67386.0,67385.0,0.074233]
[1729612606591,0.074236,67383.0,67378.0,0.074241]
[1729612606892,0.07424,67379.0,67378.0,0.074241]
[1729612607088,0.07424,67379.0,67378.0,0.210481]
[1729612607392,0.12444,67379.0,67378.0,0.210481]
[1729612607592,0.12444,67379.0,67378.0,0.13624]
[1729612608392,0.12444,67379.0,67378.0,0.14124]
[1729612608687,0.12444,67379.0,67378.0,0.14624]
[1729612609594,0.13484533,67379.0,67378.0,0.14624]
[1729612610793,0.49564533,67379.0,67378.0,0.14624]
[1729612611089,0.48524,67379.0,67378.0,0.14624]
[1729612612095,0.48524,67379.0,67378.0,0.220481]
[1729612613995,0.63365419,67379.0,67378.0,0.220481]
[1729612615998,0.63365419,67379.0,67378.0,0.212481]
[1729612618094,0.63365419,67379.0,67378.0,0.076241]
[1729612618296,0.72941419,67379.0,67374.0,0.13576]
[1729612618495,0.074244,67375.0,67374.0,0.13576]
[1729612619399,0.074244,67375.0,67374.0,0.14076]
[1729612620290,0.075244,67375.0,67374.0,0.14276]
[1729612620496,0.001,67375.0,67374.0,0.217006]
[1729612621293,0.002,67375.0,67374.0,0.226006]
[1729612621502,0.002,67375.0,67374.0,0.38113377]
[1729612621697,0.002,67375.0,67374.0,0.300131]
[1729612621899,0.002,67375.0,67374.0,0.30018175]
[1729612622099,0.002,67375.0,67374.0,0.226006]
[1729612622299,0.002,67375.0,67374.0,0.30018175]
[1729612622515,0.076244,67375.0,67374.0,0.30018175]
[1729612622804,0.076244,67375.0,67374.0,0.38116523]
[1729612625401,0.002,67375.0,67374.0,0.38116523]
[1729612626012,0.14917419,67379.0,67378.0,0.074241]
[1729612626203,0.14841419,67379.0,67378.0,0.074241]
[1729612626901,0.14841419,67379.0,67378.0,0.14841675]
[1729612627493,0.14841419,67379.0,67378.0,0.074241]
[1729612627698,0.22265419,67379.0,67378.0,0.074241]
[1729612628303,0.22265419,67379.0,67378.0,0.079241]
[1729612628503,0.22265419,67379.0,67378.0,0.084241]
[1729612628908,0.22265419,67379.0,67378.0,0.23911934]
[1729612629103,0.22265419,67379.0,67378.0,0.084241]
[1729612629310,0.22265419,67379.0,67378.0,0.15341675]
[1729612629604,0.22265419,67379.0,67378.0,0.15841675]
[1729612629805,0.22265419,67379.0,67378.0,0.084241]
[1729612630004,0.22265419,67379.0,67378.0,0.23912425]
[1729612630302,0.22265419,67379.0,67378.0,0.194241]
[1729612631401,0.22265419,67379.0,67378.0,0.186241]
[1729612631901,0.58345419,67379.0,67378.0,0.076241]
[1729612632104,0.58345419,67379.0,67378.0,0.19694975]
[1729612635206,0.22265419,67379.0,67378.0,0.19694975]
[1729612635407,0.14841419,67379.0,67378.0,0.38783971]
[1729612635709,0.14841419,67379.0,67378.0,0.27783971]
[1729612636609,0.22265419,67379.0,67378.0,0.26713096]
[1729612636901,0.22265419,67379.0,67378.0,0.08424003]
[1729612639211,0.22265419,67379.0,67378.0,0.16513488]
[1729612639709,0.37106838,67379.0,67378.0,0.16513488]
[1729612641006,0.37106838,67379.0,67378.0,0.30089488]
[1729612643517,0.37106838,67379.0,67378.0,0.54513588]
[1729612643720,0.29682838,67379.0,67378.0,0.47086005]
[1729612644614,0.14841419,67379.0,67378.0,0.91610005]
[1729612644813,0.1260148,67379.0,67378.0,1.22891451]
[1729612645009,0.1260148,67379.0,67378.0,1.27501451]
[1729612645208,0.1260148,67379.0,67378.0,1.28196312]
[1729612646406,0.1260148,67379.0,67378.0,1.28140495]
[1729612646611,0.1260148,67379.0,67378.0,1.18561562]
[1729612646814,0.1260148,67379.0,67378.0,1.2733811]
[1729612648213,0.1260148,67379.0,67378.0,0.8281411]
[1729612648415,0.1260148,67379.0,67378.0,1.2733811]
[1729612648610,0.1260148,67379.0,67378.0,1.27317619]
[1729612648916,0.1260148,67379.0,67378.0,1.17761562]
[1729612651222,0.1260148,67379.0,67378.0,1.26658098]
[1729612651614,0.1260148,67379.0,67378.0,1.17761562]
[1729612652020,0.1260148,67379.0,67378.0,1.17751763]
[1729612652223,0.1260148,67379.0,67378.0,0.08226477]
[1729612652418,0.2002548,67379.0,67378.0,0.13732]
[1729612653317,0.5610548,67379.0,67378.0,0.13732]
[1729612653532,0.7310548,67379.0,67378.0,0.13732]
[1729612654418,0.7310548,67379.0,67378.0,0.18181286]
[1729612654621,0.7310548,67379.0,67378.0,0.04649286]
[1729612654830,0.7310548,67379.0,67378.0,0.18181286]
[1729612655023,0.7310548,67379.0,67378.0,0.13732]
[1729612655213,0.7310548,67379.0,67378.0,0.18181116]
[1729612655418,0.7310548,67379.0,67378.0,0.13732]
[1729612655823,0.7310548,67379.0,67378.0,0.002]
[1729612656122,1.18664486,67379.0,67374.0,0.04449116]
[1729612656322,1.18664486,67379.0,67373.0,0.17981116]
[1729612656323,0.17,67375.0,67373.0,0.17981116]
[1729612656530,0.074246,67374.0,67373.0,0.13532]
[1729612657516,0.074247,67373.0,67372.0,0.13532]
[1729612659127,0.123547,67373.0,67372.0,0.13532]
[1729612659719,0.123547,67373.0,67372.0,0.13832]
[1729612660724,0.123547,67373.0,67372.0,0.387568]
[1729612662222,0.123547,67373.0,67372.0,0.379568]
[1729612663630,0.074247,67373.0,67372.0,0.30532]
[1729612663934,0.074247,67373.0,67372.0,0.379568]
[1729612664724,0.3608,67376.0,67375.0,0.074244]
[1729612665031,0.3608,67376.0,67375.0,0.30349292]
[1729612665227,0.3608,67376.0,67375.0,0.244244]
[1729612665827,0.3608,67376.0,67375.0,0.30349119]
[1729612666028,0.435043,67376.0,67375.0,0.30349119]
[1729612666236,0.435043,67376.0,67375.0,0.244244]
[1729612666535,0.435043,67376.0,67375.0,0.245244]
[1729612667035,0.435043,67376.0,67375.0,0.30349119]
[1729612667228,0.435043,67376.0,67375.0,0.30449119]
[1729612667733,0.435043,67376.0,67375.0,0.30549119]
[1729612668328,0.435043,67376.0,67375.0,0.30449119]
[1729612668541,0.435043,67376.0,67375.0,0.30549119]
[1729612668729,0.435043,67376.0,67375.0,0.246244]
[1729612670235,0.435043,67376.0,67375.0,0.245244]
[1729612670434,0.435043,67376.0,67375.0,0.246244]
[1729612675930,0.435043,67376.0,67375.0,0.30549119]
[1729612676131,0.435043,67376.0,67375.0,0.246244]
[1729612676347,0.435043,67376.0,67375.0,0.24549119]
[1729612676841,0.074243,67376.0,67375.0,0.24549119]
[1729612677427,0.074243,67376.0,67375.0,0.23749119]
[1729612677635,0.074243,67376.0,67375.0,0.178244]
[1729612682442,0.074243,67376.0,67375.0,0.25238615]
[1729612683239,0.074243,67376.0,67375.0,0.178244]
[1729612684241,0.074243,67376.0,67375.0,0.002]
[1729612684436,0.074243,67376.0,67375.0,0.112]
[1729612687146,0.074243,67376.0,67375.0,0.186244]
[1729612688650,0.074243,67376.0,67375.0,0.18614215]
[1729612689649,0.074243,67376.0,67375.0,0.26703451]
[1729612690542,0.074243,67376.0,67375.0,0.19289236]
[1729612692242,0.074243,67376.0,67375.0,0.112]
[1729612692445,0.074243,67376.0,67375.0,0.32877465]
[1729612692853,0.074243,67376.0,67375.0,0.32077465]
[1729612694848,0.184243,67376.0,67370.0,0.08896257]
[1729612695046,0.3608,67371.0,67370.0,0.13492]
[1729612695248,0.3608,67377.0,67375.0,0.074243]
[1729612695456,0.435042,67377.0,67376.0,0.11]
[1729612696045,0.1126648,67376.0,67374.0,0.074245]
[1729612696251,0.1126648,67376.0,67375.0,0.11]
[1729612696554,0.1126648,67376.0,67375.0,0.184244]
[1729612696555,0.0384208,67376.0,67375.0,0.184244]
[1729612697460,0.0384208,67376.0,67375.0,0.35629226]
[1729612697656,0.0384208,67376.0,67375.0,0.35729226]
[1729612697959,0.0384208,67376.0,67375.0,0.36788159]
[1729612698260,0.1126638,67376.0,67375.0,0.17304826]
[1729612698461,0.7279438,67376.0,67375.0,0.08389868]
[1729612698648,0.7279438,67376.0,67367.0,0.07429012]
[1729612698649,0.44528,67375.0,67367.0,0.07429012]
[1729612698852,0.2826638,67376.0,67364.0,0.55184]
[1729612698853,0.074255,67365.0,67364.0,0.55184]
[1729612699052,0.074255,67365.0,67364.0,0.5508]
[1729612699355,0.074255,67365.0,67364.0,0.13492]
[1729612699553,0.074255,67365.0,67361.0,0.0022265]
[1729612699761,0.605059,67362.0,67361.0,0.0022265]
[1729612700061,0.605059,67362.0,67361.0,0.1371465]
[1729612700260,0.605059,67362.0,67361.0,0.0022265]
[1729612700562,0.605059,67362.0,67361.0,0.04673056]
[1729612700755,0.605059,67362.0,67361.0,0.0022265]
[1729612700950,0.605059,67362.0,67361.0,0.04673017]
[1729612701155,0.606059,67362.0,67361.0,0.0072265]
[1729612701463,0.606059,67362.0,67361.0,0.0092265]
[1729612702766,0.606059,67362.0,67361.0,0.0072265]
[1729612703067,0.607059,67362.0,67361.0,0.0092265]
[1729612705265,0.074265,67356.0,67355.0,0.04450367]
[1729612705466,0.074265,67356.0,67354.0,0.13496]
[1729612705467,0.3608,67356.0,67354.0,0.13496]
[1729612706176,0.074266,67355.0,67354.0,0.209228]
[1729612706474,0.074266,67355.0,67354.0,0.13496]
[1729612707381,0.074266,67355.0,67354.0,0.14396]
[1729612707968,0.075266,67355.0,67354.0,0.14396]
[1729612708474,0.075266,67355.0,67354.0,0.13596]
[1729612708773,0.075266,67355.0,67354.0,0.13296]
[1729612708965,0.076266,67355.0,67354.0,0.13296]
[1729612712274,0.076266,67355.0,67354.0,0.14052]
[1729612713479,0.076266,67355.0,67354.0,0.006]
[1729612713675,0.076266,67355.0,67354.0,0.14052]
[1729612714080,0.076266,67355.0,67354.0,0.18502367]
[1729612714684,0.437066,67355.0,67354.0,0.18502367]
[1729612714873,0.58553307,67355.0,67354.0,0.18502367]
[1729612715073,0.58453307,67355.0,67354.0,0.17902367]
[1729612715275,0.58453307,67355.0,67354.0,0.18102367]
[1729612715276,0.58553307,67355.0,67354.0,0.18102367]
[1729612717184,0.58553307,67355.0,67354.0,0.18002367]
[1729612717485,0.58553307,67355.0,67354.0,0.13552]
[1729612717785,0.58453307,67355.0,67354.0,0.13552]
[1729612717980,0.58553307,67355.0,67354.0,0.13552]
[1729612718379,0.58453307,67355.0,67354.0,0.13452]
[1729612718579,0.58553307,67355.0,67354.0,0.13552]
[1729612719782,0.58553307,67355.0,67354.0,0.17991347]
[1729612720385,0.58453307,67355.0,67354.0,0.13552]
[1729612720588,0.58553307,67355.0,67354.0,0.13652]
[1729612720795,0.58553307,67355.0,67354.0,0.25519088]
[1729612720988,0.22473307,67355.0,67354.0,0.210788]
[1729612721178,0.51026707,67355.0,67354.0,0.209788]
[1729612721380,0.51126707,67355.0,67354.0,0.210788]
[1729612722285,0.58553307,67355.0,67354.0,0.320788]
[1729612723689,0.58553307,67355.0,67354.0,0.312788]
[1729612725694,0.58553307,67355.0,67354.0,0.23852]
[1729612726392,0.58553307,67355.0,67354.0,0.12852]
[1729612726785,0.58553307,67355.0,67354.0,0.23852]
[1729612729293,0.58553307,67355.0,67354.0,0.28473044]
[1729612729493,1.14093307,67355.0,67354.0,0.002]
[1729612730199,1.14093307,67355.0,67354.0,0.0465775]
[1729612730403,1.20093307,67355.0,67354.0,0.002]
[1729612731105,1.19993307,67355.0,67354.0,0.0455775]
[1729612731295,1.20293307,67355.0,67354.0,0.0455775]
[1729612731801,0.074268,67354.0,67353.0,0.0445775]
[1729612732996,0.076268,67354.0,67353.0,0.0445775]
[1729612734405,0.074269,67353.0,67352.0,0.0445775]
[1729612735909,0.076269,67353.0,67352.0,0.0445775]
[1729612736417,0.002,67353.0,67351.0,0.04452436]
[1729612737505,0.076269,67353.0,67352.0,0.04452436]
[1729612737706,0.075269,67353.0,67352.0,0.04452436]
[1729612737906,0.076269,67353.0,67352.0,0.04452436]
[1729612738308,0.074273,67351.0,67350.0,0.074272]
[1729612739007,0.074273,67351.0,67350.0,0.066272]
[1729612740907,0.074273,67351.0,67350.0,0.067272]
[1729612741503,0.074273,67351.0,67350.0,0.001]
[1729612741703,0.01058451,67353.0,67348.0,0.17]
[1729612741909,0.01058451,67353.0,67352.0,0.04451452]
[1729612741910,0.074269,67353.0,67352.0,0.04451452]
[1729612742100,0.3608,67354.0,67352.0,0.04451452]
[1729612742409,0.074269,67353.0,67352.0,0.04451452]
[1729612743010,0.17823237,67351.0,67350.0,0.001]
[1729612743910,0.17823237,67351.0,67350.0,0.075272]
[1729612744308,0.074274,67349.0,67347.0,0.00016292]
[1729612744611,0.435074,67348.0,67347.0,0.07443792]
[1729612745510,0.435074,67348.0,67347.0,0.00016292]
[1729612746908,0.435074,67348.0,67347.0,0.00116292]
[1729612752313,0.435074,67348.0,67347.0,0.11116292]
[1729612752314,0.3608,67348.0,67347.0,0.11116292]
[1729612753320,0.435074,67348.0,67347.0,0.11116292]
[1729612754317,0.435074,67348.0,67345.0,0.13412]
[1729612754617,0.435074,67348.0,67347.0,0.11]
[1729612755620,0.435074,67348.0,67347.0,0.24412]
[1729612756912,0.43523692,67348.0,67347.0,0.24412]
[1729612757114,0.435074,67348.0,67347.0,0.24412]
[1729612759222,0.435074,67348.0,67347.0,0.31838393]
[1729612759414,0.43519157,67348.0,67347.0,0.32524398]
[1729612759615,0.435074,67348.0,67347.0,0.32524398]
[1729612760120,0.10396137,67351.0,67347.0,0.35412]
[1729612760320,0.00013558,67353.0,67352.0,0.07427]
[1729612760517,0.00013558,67353.0,67352.0,0.1553575]
[1729612763118,0.00113558,67353.0,67352.0,0.1548746]
[1729612764327,0.00113558,67353.0,67352.0,0.07427]
[1729612764527,0.00013558,67353.0,67352.0,0.07427]
[1729612765616,0.00013558,67353.0,67352.0,0.08484893]
[1729612766622,0.00013558,67353.0,67352.0,0.14469893]
[1729612766822,0.00013558,67353.0,67352.0,0.13412]
[1729612769523,0.00013558,67353.0,67352.0,0.12612]
[1729612771930,0.00013558,67353.0,67351.0,0.07427]
[1729612772232,0.00013558,67353.0,67352.0,0.13368]
[1729612774226,0.07440458,67353.0,67352.0,0.13368]
[1729612774732,0.07440458,67353.0,67352.0,0.30302227]
[1729612775133,0.07440458,67353.0,67352.0,0.24368]
[1729612775536,0.07440458,67353.0,67352.0,0.30302227]
[1729612776825,0.07540458,67353.0,67352.0,0.30302227]
[1729612777026,0.07540458,67353.0,67352.0,0.24368]
[1729612777733,0.07540458,67353.0,67349.0,0.01048766]
[1729612777734,0.074271,67351.0,67349.0,0.05934227]
[1729612778037,0.074271,67351.0,67350.0,0.13368]
[1729612779837,0.07443195,67351.0,67350.0,0.13368]
[1729612780132,0.074271,67351.0,67350.0,0.13368]
[1729612781335,0.11,67351.0,67347.0,0.05934227]
[1729612781638,0.074275,67347.0,67346.0,0.05934227]
[1729612781834,0.07442536,67347.0,67346.0,0.13368]
[1729612783132,0.074276,67346.0,67345.0,0.11]
[1729612783327,0.00015036,67347.0,67339.0,0.07418794]
[1729612783328,0.001,67347.0,67343.0,0.05934227]
[1729612783534,0.07428,67343.0,67342.0,0.05934227]
[1729612783844,0.07428,67343.0,67342.0,0.19302227]
[1729612784138,0.07442875,67343.0,67342.0,0.19302227]
[1729612784337,0.07428,67343.0,67342.0,0.19302227]
[1729612784534,0.07444292,67343.0,67342.0,0.19302227]
[1729612784728,0.07428,67343.0,67342.0,0.19302227]
[1729612784929,0.07428,67343.0,67342.0,0.18502227]
[1729612785343,0.074281,67342.0,67340.0,0.11]
[1729612785530,0.074281,67342.0,67341.0,0.13368]
[1729612786740,1.02728,67342.0,67335.0,0.07418794]
[1729612786945,1.02728,67342.0,67316.0,0.10400784]
[1729612786946,0.074295,67329.0,67328.0,0.07418794]
[1729612787143,0.074296,67328.0,67321.0,0.07418794]
[1729612787436,0.07440694,67328.0,67322.0,0.11]
[1729612787645,0.074296,67328.0,67322.0,0.11]
[1729612788435,0.07445892,67328.0,67322.0,0.11]
[1729612788637,0.074296,67328.0,67322.0,0.11]
[1729612788837,0.074296,67328.0,67318.0,0.317987]
[1729612789835,0.074296,67328.0,67320.0,0.01059455]
[1729612790035,0.122596,67328.0,67321.0,0.13372]
[1729612790451,0.074303,67322.0,67320.0,0.01059455]
[1729612790644,0.43525393,67321.0,67320.0,0.13372]
[1729612792139,0.43525393,67321.0,67319.0,0.11]
[1729612792140,0.43625393,67321.0,67319.0,0.11]
[1729612792346,0.43625393,67321.0,67320.0,0.13372]
[1729612793046,0.43725393,67321.0,67320.0,0.13372]
[1729612798240,0.43725393,67321.0,67313.0,0.0509]
[1729612798241,0.3628,67321.0,67313.0,0.0509]
[1729612798442,0.545112,67314.0,67313.0,0.0509]
[1729612798641,0.54527084,67314.0,67313.0,0.18462]
[1729612799754,0.546112,67314.0,67313.0,0.18462]
[1729612800660,0.546112,67314.0,67313.0,0.12572]
[1729612800661,0.43624067,67314.0,67313.0,0.12572]
[1729612800862,0.436112,67314.0,67313.0,0.12572]
[1729612801153,0.43624345,67314.0,67313.0,0.12572]
[1729612801360,0.436112,67314.0,67313.0,0.12572]
[1729612801649,0.436112,67314.0,67310.0,0.07389729]
[1729612801650,0.074315,67311.0,67310.0,0.07389729]
[1729612802060,0.07443463,67311.0,67310.0,0.07389729]
[1729612804351,0.43523463,67311.0,67310.0,0.07389729]
[1729612804546,0.435115,67311.0,67310.0,0.07389729]